bitfinex/quotes_SOLUSD_20260214
["timestamp","ask_amount","ask_price","bid_price","bid_amount"]
[1771030879491,63.5,84.903,84.881,0.20077634]
[1771030879687,63.5,84.904,84.881,0.20077634]
[1771030882111,63.5,84.904,84.89,3.834824]
[1771030882297,63.5,84.904,84.886,0.20568672]
[1771030883301,63.5,84.904,84.881,0.21283594]
[1771030883505,0.77613637,84.903,84.881,0.21283594]
[1771030883910,0.77613637,84.902,84.87,1e-08]
[1771030884104,0.77613637,84.9,84.87,1e-08]
[1771030884508,0.77613637,84.899,84.87,1e-08]
[1771030885215,0.77613637,84.877,84.86,1e-08]
[1771030885391,0.77613637,84.875,84.86,1e-08]
[1771030885600,0.77613637,84.875,84.839,0.21517366]
[1771030885601,0.77613637,84.875,84.84,0.2]
[1771030885921,0.77613637,84.875,84.851,0.41764167]
[1771030886094,0.77613637,84.875,84.84,0.2]
[1771030886095,0.77613637,84.875,84.84,4.034824]
[1771030886295,0.77613637,84.875,84.842,0.42008095]
[1771030887495,0.77613637,84.869,84.84,0.2]
[1771030887690,75.34217121,84.874,84.84,0.2]
[1771030887691,3.834824,84.86,84.84,0.2]
[1771030887896,0.77613637,84.859,84.84,0.2]
[1771030888413,0.77613637,84.857,84.84,0.2]
[1771030888791,0.77613637,84.855,84.84,0.2]
[1771030889008,0.77613637,84.862,84.84,0.2]
[1771030889190,61.22,84.861,84.84,0.2]
[1771030889400,0.77613637,84.876,84.85,3.834824]
[1771030889600,12.60917182,84.875,84.85,3.834824]
[1771030889814,0.82713942,84.874,84.85,3.834824]
[1771030890818,0.82713942,84.873,84.86,3.834824]
[1771030893922,0.82713942,84.873,84.85,3.834824]
[1771030895103,0.82713942,84.879,84.86,3.834824]
[1771030895305,29.44673073,84.9,84.87,3.834824]
[1771030895306,63.7,84.882,84.87,3.834824]
[1771030895710,63.7,84.882,84.85,11.7853935]
[1771030896027,63.72,84.881,84.87,3.834824]
[1771030896428,63.72,84.881,84.87,2.1342268]
[1771030899210,0.82713942,84.88,84.87,2.1342268]
[1771030900233,0.82713942,84.88,84.87,2.22306497]
[1771030900612,0.82713942,84.878,84.86,2.22306497]
[1771030901512,63.78,84.877,84.86,2.22306497]
[1771030902631,61.10921699,84.91,84.84,0.2]
[1771030902632,0.82713942,84.891,84.871,0.03563885]
[1771030902936,63.8,84.89,84.88,2.22235237]
[1771030903111,0.82713942,84.897,84.88,2.22235237]
[1771030903314,11.77742876,84.909,84.89,2.22235237]
[1771030903315,63.8,84.896,84.89,2.22235237]
[1771030904309,11.77742876,84.909,84.89,2.22235237]
[1771030904514,13.94665807,84.94,84.861,41.24391651]
[1771030904515,0.82713942,84.922,84.9,2.22235237]
[1771030904715,63.8,84.921,84.91,2.22235237]
[1771030905112,63.8,84.921,84.9,2.22235237]
[1771030905317,0.82713942,84.932,84.91,2.22235237]
[1771030905611,63.82,84.938,84.92,2.22235237]
[1771030905822,63.82,84.938,84.93,2.22235237]
[1771030906337,63.84,84.937,84.93,2.22235237]
[1771030906929,63.84,84.937,84.915,11.77646936]
[1771030907140,63.84,84.937,84.93,2.22235237]
[1771030909035,0.82713942,84.946,84.93,2.22235237]
[1771030911723,29.42318782,84.967,84.884,0.0541286]
[1771030911724,0.82713942,84.939,84.884,0.0541286]
[1771030911930,0.82713942,84.937,84.89,2.22235237]
[1771030912616,0.82713942,84.935,84.891,11.77981175]
[1771030913738,0.82713942,84.929,84.89,2.22235237]
[1771030914330,63.94,84.928,84.89,2.22235237]
[1771030914530,63.94,84.927,84.881,11.78110792]
[1771030914730,0.82713942,84.924,84.881,11.78110792]
[1771030915918,0.82713942,84.922,84.89,2.22235237]
[1771030919538,0.82713942,84.92,84.89,2.22235237]
[1771030920622,0.82713942,84.918,84.89,2.22235237]
[1771030923637,0.82713942,84.916,84.891,0.07767567]
[1771030923843,64.0,84.915,84.9,2.22235237]
[1771030924142,64.0,84.914,84.9,2.22235237]
[1771030924641,64.0,84.914,84.892,0.07767567]
[1771030924821,0.82713942,84.913,84.89,2.22235237]
[1771030925428,0.82713942,84.913,84.89,14.00225058]
[1771030928152,0.82713942,84.913,84.891,0.08423708]
[1771030929140,0.82713942,84.913,84.9,2.22235237]
[1771030929329,64.0,84.914,84.9,2.22235237]
[1771030929536,0.82713942,84.948,84.901,0.08741401]
[1771030929722,0.82713942,84.963,84.93,2.22235237]
[1771030930046,0.82713942,84.948,84.92,2.22235237]
[1771030930245,0.82713942,84.946,84.92,2.22235237]
[1771030930427,0.82713942,84.946,84.91,2.22235237]
[1771030930627,0.82713942,84.946,84.893,0.08896786]
[1771030930628,0.82713942,84.944,84.9,2.22235237]
[1771030931344,64.1,84.943,84.9,2.22235237]
[1771030931549,0.82713942,84.942,84.9,2.22235237]
[1771030932051,0.82713942,84.939,84.89,2.22235237]
[1771030933451,0.82713942,84.937,84.89,2.22235237]
[1771030935855,0.82713942,84.934,84.89,2.22235237]
[1771030937332,0.82713942,84.934,84.9,2.22235237]
[1771030938449,0.82713942,84.932,84.9,2.22235237]
[1771030941752,0.82713942,84.93,84.9,2.22235237]
[1771030942154,0.82713942,84.928,84.9,2.22235237]
[1771030942857,0.82713942,84.928,84.889,11.77996603]
[1771030943035,0.82713942,84.928,84.891,0.10630842]
[1771030943356,0.82713942,84.928,84.9,2.22235237]
[1771030943747,0.82713942,84.926,84.9,2.22235237]
[1771030947455,0.82713942,84.924,84.896,0.1076494]
[1771030951154,0.82713942,84.924,84.89,2.22235237]
[1771030951337,0.82713942,84.922,84.88,2.22235237]
[1771030951545,0.82713942,84.922,84.891,0.11692187]
[1771030951742,0.82713942,84.92,84.891,0.11692187]
[1771030953751,0.82713942,84.918,84.89,2.22235237]
[1771030954760,0.82713942,84.916,84.89,2.22235237]
[1771030954953,0.82713942,84.916,84.88,2.22235237]
[1771030955141,41.21574676,84.919,84.88,2.22235237]
[1771030955142,0.82713942,84.914,84.88,2.22235237]
[1771030955566,0.82713942,84.914,84.88,2.33990129]
[1771030955763,11.77675974,84.913,84.881,0.11754892]
[1771030956065,0.82713942,84.912,84.88,2.22235237]
[1771030957067,41.21865909,84.913,84.88,2.22235237]
[1771030957068,11.77703713,84.911,84.88,2.22235237]
[1771030957252,0.82713942,84.91,84.88,2.22235237]
[1771030960372,11.77731453,84.909,84.88,2.22235237]
[1771030960666,0.87717394,84.908,84.88,2.34079229]
[1771030961572,0.87717394,84.908,84.88,2.22235237]
[1771030961869,0.87717394,84.908,84.881,0.11858079]
[1771030964575,0.87717394,84.939,84.901,0.11899385]
[1771030964765,0.87717394,84.937,84.901,0.11899385]
[1771030965170,0.87717394,84.937,84.9,2.22132792]
[1771030966660,0.87717394,84.935,84.9,2.22132792]
[1771030968666,65.24,84.938,84.901,0.11953394]
[1771030968667,0.87717394,84.933,84.901,0.11953394]
[1771030973987,0.87717394,84.931,84.901,0.11953394]
[1771030979491,0.87717394,84.929,84.901,0.11953394]
[1771030981276,11.65157638,84.93,84.901,0.11953394]
[1771030982989,11.77357068,84.936,84.902,0.88077003]
[1771030983202,11.76955216,84.965,84.931,0.88077003]
[1771030983405,0.80572257,84.954,84.911,0.88077003]
[1771030986106,0.80572257,84.952,84.921,0.88077003]
[1771030987101,0.80572257,84.952,84.931,0.88077003]
[1771030987300,66.38,84.951,84.931,0.88077003]
[1771030989711,11.77163037,84.95,84.931,0.88077003]
[1771030989891,11.76996775,84.962,84.93,2.22132792]
[1771030990092,66.48,84.961,84.94,2.22132792]
[1771030990492,67.37072381,84.961,84.94,2.22132792]
[1771030990711,0.89072381,84.96,84.94,2.22132792]
[1771030992415,11.77038336,84.959,84.94,2.22132792]
[1771030993714,66.58,84.958,84.95,2.22132792]
[1771030994006,66.58,84.958,84.94,2.22132792]
[1771030996396,0.89072381,84.955,84.93,2.22132792]
[1771030996912,0.89072381,84.953,84.92,2.22132792]
[1771030997721,0.89072381,84.953,84.93,2.22132792]
[1771030998518,11.77135323,84.952,84.93,2.22132792]
[1771030998927,0.89072381,84.951,84.93,2.22132792]
[1771030999103,0.89072381,84.951,84.92,2.22132792]
[1771030999719,11.77135323,84.952,84.92,2.22132792]
[1771030999720,0.89072381,84.949,84.92,2.22132792]
[1771030999917,0.89072381,84.949,84.914,11.7765883]
[1771031000125,0.89072381,84.949,84.93,2.22132792]
[1771031002008,12.66263132,84.948,84.93,2.22132792]
[1771031002621,0.89072381,84.947,84.93,2.22132792]
[1771031003425,0.89072381,84.945,84.93,2.22132792]
[1771031005711,11.77218468,84.946,84.93,2.22132792]
[1771031008024,11.77246185,84.944,84.923,0.02410692]
[1771031008229,0.89072381,84.942,84.91,2.22132792]
[1771031008609,0.89072381,84.94,84.897,0.02531869]
[1771031008808,0.89072381,84.939,84.9,2.22132792]
[1771031010222,11.77329346,84.938,84.9,2.22132792]
[1771031010424,0.89072381,84.937,84.9,2.22132792]
[1771031011011,0.89072381,84.937,84.901,0.02741502]
[1771031012229,10.48670872,84.938,84.901,0.02741502]
[1771031014231,0.8263253,84.935,84.901,0.02741502]
[1771031014635,0.8263253,84.935,84.9,2.22132792]
[1771031014833,0.8263253,84.933,84.9,2.22132792]
[1771031015335,0.8263253,84.931,84.9,2.22132792]
[1771031015633,0.8263253,84.929,84.884,0.84453924]
[1771031015816,2.22132792,84.93,84.884,0.84453924]
[1771031015817,0.8263253,84.919,84.884,0.84453924]
[1771031016416,0.8263253,84.917,84.884,0.84453924]
[1771031019516,0.83792692,84.909,84.861,0.81918414]
[1771031019719,0.83792692,84.907,84.871,0.81918414]
[1771031020840,0.83792692,84.915,84.88,2.22132792]
[1771031021021,0.83792692,84.914,84.891,0.81918414]
[1771031021219,11.77634368,84.916,84.891,0.81918414]
[1771031021220,0.83792692,84.912,84.891,0.81918414]
[1771031021536,67.08,84.911,84.891,0.81918414]
[1771031021938,11.77717583,84.91,84.891,0.81918414]
[1771031022638,0.83792692,84.908,84.881,0.81918414]
[1771031023222,0.83792692,84.908,84.87,2.22132792]
[1771031023428,0.83792692,84.908,84.88,2.22132792]
[1771031023630,0.83792692,84.908,84.881,0.81918414]
[1771031024139,11.77759195,84.907,84.881,0.81918414]
[1771031024356,29.43521667,84.933,84.891,0.81918414]
[1771031024640,67.14,84.932,84.891,0.81918414]
[1771031025042,67.14,84.931,84.891,0.81918414]
[1771031025544,29.43600612,84.93,84.891,0.81918414]
[1771031025723,41.21040856,84.93,84.891,0.81918414]
[1771031026240,0.83792692,84.929,84.891,0.81918414]
[1771031026541,67.14,84.928,84.891,0.81918414]
[1771031026741,0.83792692,84.927,84.891,0.81918414]
[1771031026940,0.83792692,84.925,84.891,0.81918414]
[1771031028042,11.77523432,84.924,84.891,0.81918414]
[1771031028249,0.83792692,84.923,84.891,0.81918414]
[1771031028734,67.14,84.922,84.891,0.81918414]
[1771031029131,67.14,84.921,84.891,0.81918414]
[1771031030044,67.16,84.92,84.893,0.81918414]
[1771031030243,0.83792692,84.936,84.901,0.81918414]
[1771031030546,0.83792692,84.929,84.891,0.81918414]
[1771031030938,0.83792692,84.919,84.878,0.81918414]
[1771031031135,0.83792692,84.917,84.878,0.81918414]
[1771031031340,0.83792692,84.915,84.878,0.81918414]
[1771031031537,0.83792692,84.913,84.878,0.81918414]
[1771031032146,0.83792692,84.911,84.878,0.81918414]
[1771031032947,0.83792692,84.911,84.871,0.81918414]
[1771031037337,0.83792692,84.909,84.881,0.81918414]
[1771031037555,0.83792692,84.907,84.881,0.81918414]
[1771031037848,41.22011541,84.91,84.87,2.22187228]
[1771031037849,0.83792692,84.905,84.87,2.22187228]
[1771031038056,0.83792692,84.903,84.87,2.22187228]
[1771031039155,0.83792692,84.901,84.87,2.22187228]
[1771031039348,0.83792692,84.899,84.87,2.22187228]
[1771031039951,0.83792692,84.899,84.871,0.81918414]
[1771031040465,67.46,84.9,84.871,0.81918414]
[1771031040666,2.22187228,84.92,84.881,0.81918414]
[1771031040667,67.48,84.899,84.881,0.81918414]
[1771031040848,67.48,84.902,84.881,0.81918414]
[1771031042137,0.83126907,84.9,84.875,0.89960152]
[1771031042346,0.83126907,84.9,84.871,0.89960152]
[1771031043966,41.22448498,84.901,84.871,0.89960152]
[1771031043967,11.77870175,84.899,84.871,0.89960152]
[1771031044170,0.83126907,84.898,84.871,0.89960152]
[1771031044965,11.77897923,84.897,84.88,2.22187228]
[1771031045166,67.56,84.9,84.881,0.89960152]
[1771031045354,67.56,84.903,84.89,2.22187228]
[1771031045862,67.56,84.903,84.88,2.22187228]
[1771031046252,0.9188995,84.902,84.851,61.9]
[1771031046459,0.9188995,84.899,84.85,2.22187228]
[1771031046655,0.9188995,84.897,84.85,2.22187228]
[1771031046964,41.22691291,84.896,84.85,2.22187228]
[1771031047151,0.9188995,84.889,84.85,2.22187228]
[1771031047353,0.9188995,84.887,84.85,2.22187228]
[1771031050067,0.9188995,84.885,84.85,2.22187228]
[1771031052275,67.86,84.888,84.87,2.22187228]
[1771031053070,11.77856301,84.9,84.88,2.22187228]
[1771031053373,67.9,84.899,84.88,2.22187228]
[1771031054058,11.77786938,84.905,84.88,2.22187228]
[1771031054265,67.92,84.904,84.88,2.22187228]
[1771031054478,11.77786938,84.905,84.88,2.22187228]
[1771031054682,41.21137904,84.928,84.9,2.22187228]
[1771031054875,67.92,84.915,84.9,2.22187228]
[1771031055262,0.9188995,84.927,84.901,0.02167601]
[1771031055462,0.9188995,84.925,84.901,0.02167601]
[1771031055661,0.9188995,84.925,84.9,2.22187228]
[1771031055965,0.9188995,84.925,84.89,2.22187228]
[1771031056160,0.9188995,84.925,84.866,29.45809983]
[1771031056161,0.9188995,84.923,84.9,2.22187228]
[1771031056859,67.94,84.922,84.9,2.22187228]
[1771031057059,67.94,84.922,84.897,0.02167601]
[1771031057470,11.77523432,84.924,84.901,0.41709447]
[1771031057679,41.21332013,84.924,84.89,2.22187228]
[1771031057872,41.21332013,84.924,84.9,2.22187228]
[1771031057873,11.77523432,84.924,84.9,2.22187228]
[1771031058082,11.77523432,84.924,84.9,2.63896675]
[1771031058783,11.77523432,84.924,84.9,2.22187228]
[1771031059082,0.83126907,84.923,84.9,2.22187228]
[1771031059466,11.77551164,84.922,84.9,2.22187228]
[1771031059666,0.83126907,84.921,84.901,0.4212606]
[1771031059885,11.77551164,84.922,84.91,2.22187228]
[1771031059886,67.98,84.92,84.91,2.22187228]
[1771031062386,67.98,84.92,84.911,0.42733655]
[1771031062978,67.98,84.92,84.91,2.22187228]
[1771031063287,67.98,84.92,84.895,0.42733655]
[1771031063288,0.83126907,84.918,84.895,0.42733655]
[1771031063487,0.83126907,84.918,84.9,2.22187228]
[1771031064492,68.1,84.917,84.9,2.22187228]
[1771031064871,11.77634368,84.916,84.9,2.22187228]
[1771031065876,12.60761275,84.916,84.9,2.22187228]
[1771031067589,12.60761275,84.916,84.894,0.42931614]
[1771031067789,0.83126907,84.915,84.9,2.22187228]
[1771031067988,67.68301426,84.914,84.91,2.65886026]
[1771031068195,68.12,84.913,84.91,2.65886026]
[1771031068494,68.14,84.923,84.91,0.43698798]
[1771031069692,103.5,84.939,84.91,0.43698798]
[1771031069693,0.94165401,84.938,84.91,2.22187228]
[1771031069996,11.77343207,84.937,84.92,2.22187228]
[1771031070291,12.71508608,84.937,84.92,2.22187228]
[1771031070685,11.77343207,84.937,84.92,2.22187228]
[1771031071069,0.94165401,84.936,84.92,2.22187228]
[1771031072799,11.7737093,84.935,84.92,2.22187228]
[1771031073678,0.94165401,84.94,84.92,2.22187228]
[1771031073881,68.28,84.939,84.92,2.22187228]
[1771031074175,69.22165401,84.939,84.92,2.22187228]
[1771031075173,0.94165401,84.938,84.92,2.22187228]
[1771031075898,0.94165401,84.935,84.92,2.22187228]
[1771031076493,0.94165401,84.933,84.92,2.22187228]
[1771031076802,0.94165401,84.933,84.91,2.22187228]
[1771031077110,0.94165401,84.933,84.92,2.22187228]
[1771031077478,0.94165401,84.933,84.91,2.22187228]
[1771031078087,0.94165401,84.931,84.91,2.22187228]
[1771031079095,68.3,84.934,84.921,0.02644585]
[1771031079272,80.07397722,84.934,84.92,2.22187228]
[1771031080397,81.01563123,84.934,84.92,2.22187228]
[1771031081691,68.34,84.933,84.92,2.22187228]
[1771031083196,11.77412518,84.932,84.92,2.22187228]
[1771031085700,0.94165401,84.929,84.92,2.22187228]
[1771031086591,68.34,84.933,84.92,2.22187228]
[1771031086799,0.94165401,84.932,84.92,2.22187228]
[1771031086984,0.94165401,84.932,84.92,2.2205172]
[1771031088107,0.94165401,84.931,84.92,2.2205172]
[1771031088812,0.94165401,84.931,84.9,2.2205172]
[1771031089111,11.77412518,84.932,84.89,2.2205172]
[1771031089112,0.94165401,84.929,84.89,2.2205172]
[1771031090288,0.94165401,84.927,84.89,2.2205172]
[1771031091002,0.94165401,84.927,84.89,2.26808193]
[1771031092289,0.94165401,84.925,84.89,2.26808193]
[1771031093105,0.94165401,84.925,84.891,0.05080072]
[1771031094224,0.94165401,84.923,84.891,0.05080072]
[1771031094912,0.94165401,84.923,84.9,2.2205172]
[1771031095214,0.94165401,84.923,84.901,0.05395732]
[1771031095622,0.94165401,84.923,84.9,2.2205172]
[1771031097426,0.94165401,84.921,84.9,2.2205172]
[1771031099902,0.94165401,84.919,84.9,2.2205172]
[1771031101320,0.94165401,84.919,84.89,2.2205172]
[1771031101525,0.94423647,84.917,84.89,2.2205172]
[1771031101910,0.94423647,84.915,84.89,2.2205172]
[1771031102215,0.94423647,84.915,84.86,58.26002575]
[1771031102216,0.94423647,84.913,84.87,2.2205172]
[1771031102421,41.21720288,84.916,84.86,28.8]
[1771031102422,0.94423647,84.909,84.86,2.2205172]
[1771031102719,0.94423647,84.899,84.853,0.06735671]
[1771031102925,0.94423647,84.899,84.85,2.2205172]
[1771031103314,68.92,84.898,84.85,2.28928012]
[1771031103501,0.94423647,84.897,84.85,2.28928012]
[1771031103701,0.94423647,84.897,84.851,0.06876292]
[1771031104216,0.94423647,84.897,84.83,29.67068434]
[1771031104217,0.94423647,84.895,84.87,2.2205172]
[1771031104428,0.94423647,84.895,84.86,2.2205172]
[1771031105613,0.94423647,84.893,84.86,2.2205172]
[1771031106119,0.94423647,84.893,84.85,2.2205172]
[1771031106324,0.94423647,84.891,84.85,2.2205172]
[1771031106527,0.94423647,84.889,84.85,2.2205172]
[1771031107605,0.94423647,84.879,84.84,2.4205172]
[1771031107808,0.94423647,84.877,84.84,2.4205172]
[1771031109021,0.94423647,84.877,84.84,0.2]
[1771031109208,0.94423647,84.877,84.84,2.4205172]
[1771031109404,0.94423647,84.875,84.841,11.78675404]
[1771031109613,68.98,84.88,84.861,0.9622982]
[1771031110221,41.22545612,84.899,84.871,0.9622982]
[1771031110425,68.98,84.887,84.871,0.9622982]
[1771031110623,68.98,84.887,84.87,2.2205172]
[1771031113327,11.77861575,84.9,84.881,0.9622982]
[1771031114026,11.77861575,84.9,84.89,2.2205172]
[1771031116726,11.77861575,84.9,84.887,0.9622982]
[1771031117222,11.77731453,84.909,84.891,0.9622982]
[1771031117528,2.2205172,84.94,84.853,4.61729252]
[1771031117529,70.02423647,84.915,84.9,2.2205172]
[1771031117725,70.02423647,84.915,84.892,0.9622982]
[1771031117726,0.94423647,84.914,84.892,0.9622982]
[1771031118727,0.94423647,84.914,84.885,0.9622982]
[1771031120630,0.94423647,84.912,84.885,0.9622982]
[1771031122227,11.77703713,84.911,84.89,2.2205172]
[1771031122420,0.94423647,84.91,84.89,2.2205172]
[1771031122820,0.94423647,84.91,84.885,0.9622982]
[1771031124539,0.94423647,84.913,84.89,2.2205172]
[1771031124717,0.94423647,84.908,84.89,2.2205172]
[1771031126036,11.77759195,84.907,84.89,3.1828154]
[1771031126633,11.77759195,84.907,84.89,0.9622982]
[1771031126834,11.77759195,84.907,84.89,3.1828154]
[1771031127139,69.16,84.906,84.89,3.1828154]
[1771031127439,0.94423647,84.904,84.885,0.9622982]
[1771031129463,0.94423647,84.902,84.875,0.9622982]
[1771031131335,0.94423647,84.902,84.88,2.2205172]
[1771031131746,0.97021731,84.9,84.88,2.2205172]
[1771031131945,0.97021731,84.9,84.88,3.14830611]
[1771031132442,0.97021731,84.9,84.881,0.92778891]
[1771031132822,81.90800283,84.906,84.881,0.92778891]
[1771031133427,80.99778552,84.906,84.891,0.92778891]
[1771031139648,0.98652889,84.912,84.891,0.92778891]
[1771031139834,69.48,84.905,84.891,0.92778891]
[1771031140451,0.98652889,84.912,84.891,0.92778891]
[1771031140647,69.52,84.906,84.891,0.92778891]
[1771031141053,81.29775626,84.906,84.891,0.92778891]
[1771031142049,81.29775626,84.906,84.855,61.9]
[1771031142050,69.6,84.919,84.901,0.95844809]
[1771031142760,70.58652889,84.919,84.901,0.95844809]
[1771031146843,11.77606632,84.918,84.901,0.95844809]
[1771031149963,69.96,84.917,84.903,0.95844809]
[1771031150141,69.96,84.916,84.903,0.95844809]
[1771031151553,69.86397313,84.916,84.903,0.95844809]
[1771031152049,69.98,84.926,84.911,0.95844809]
[1771031152250,69.98,84.926,84.921,0.95844809]
[1771031152456,68.98803767,84.926,84.921,0.95844809]
[1771031152658,70.96652889,84.937,84.92,2.22137153]
[1771031152857,0.98652889,84.936,84.92,2.22137153]
[1771031155169,11.77362854,84.936,84.921,0.05402939]
[1771031155370,70.02,84.935,84.921,0.05402939]
[1771031157471,70.02,84.936,84.921,0.05402939]
[1771031159270,0.98652889,84.934,84.92,2.22137153]
[1771031159495,0.98652889,84.934,84.91,2.22137153]
[1771031160164,0.98652889,84.934,84.91,13.99853339]
[1771031160569,0.98652889,84.934,84.92,2.22137153]
[1771031162682,0.96551694,84.94,84.921,0.05868058]
[1771031162854,71.04551694,84.939,84.93,2.22137153]
[1771031163172,71.04551694,84.939,84.91,2.22137153]
[1771031163173,0.96551694,84.938,84.91,2.22137153]
[1771031164454,70.08,84.939,84.93,2.22137153]
[1771031164953,71.04551694,84.939,84.93,2.22137153]
[1771031165150,0.96551694,84.938,84.93,2.22137153]
[1771031165353,0.96551694,84.938,84.92,2.22137153]
[1771031166060,71.08551694,84.937,84.92,2.22137153]
[1771031166259,0.96551694,84.936,84.92,2.22137153]
[1771031166461,0.96551694,84.936,84.91,2.22137153]
[1771031170478,70.12,84.937,84.91,2.22137153]
[1771031170479,11.7737093,84.935,84.91,2.22137153]
[1771031170666,0.96551694,84.934,84.91,2.22137153]
[1771031172670,0.96551694,84.934,84.911,0.06450652]
[1771031174678,0.96551694,84.934,84.92,2.22137153]
[1771031182680,0.96551694,84.932,84.91,2.22137153]
[1771031182887,0.96551694,84.932,84.911,0.06969684]
[1771031183081,0.96551694,84.932,84.92,2.22137153]
[1771031192005,0.96551694,84.93,84.89,2.22137153]
[1771031192204,0.96551694,84.928,84.89,2.22137153]
[1771031193305,0.96551694,84.926,84.89,2.22137153]
[1771031193507,70.44,84.925,84.89,2.22137153]
[1771031193702,0.96551694,84.924,84.89,2.22137153]
[1771031194203,0.96551694,84.922,84.89,2.22137153]
[1771031194409,0.96551694,84.92,84.89,2.22137153]
[1771031195505,0.96551694,84.918,84.89,2.29739755]
[1771031196606,11.776205,84.917,84.89,2.29739755]
[1771031196804,0.96551694,84.916,84.89,2.29739755]
[1771031197024,0.96551694,84.914,84.89,2.29739755]
[1771031197511,70.46,84.913,84.89,2.29739755]
[1771031197703,0.96551694,84.912,84.89,2.29739755]
[1771031197911,0.96551694,84.912,84.888,11.78022806]
[1771031197912,0.96551694,84.912,84.9,2.22137153]
[1771031203909,70.54,84.924,84.902,0.07958632]
[1771031204204,70.54,84.924,84.901,11.77842428]
[1771031204205,0.97759044,84.929,84.91,2.22137153]
[1771031204404,0.97759044,84.929,84.9,2.22137153]
[1771031204608,70.54,84.928,84.9,2.22137153]
[1771031204793,0.97759044,84.927,84.9,2.22137153]
[1771031205290,70.56,84.926,84.9,2.22137153]
[1771031205592,0.97759044,84.925,84.9,2.22137153]
[1771031206396,11.77523432,84.924,84.9,2.22137153]
[1771031206609,0.97759044,84.923,84.9,2.22137153]
[1771031209027,0.97759044,84.923,84.9,2.22124279]
[1771031211219,0.97759044,84.921,84.9,2.22124279]
[1771031212115,0.97759044,84.921,84.901,0.08245478]
[1771031215418,70.68,84.92,84.901,0.08245478]
[1771031215623,0.97759044,84.919,84.901,0.08245478]
[1771031226004,0.97759044,84.919,84.9,2.22124279]
[1771031229224,0.97759044,84.919,84.901,11.77842428]
[1771031229417,0.97759044,84.919,84.901,11.86671749]
[1771031232108,0.97759044,84.919,84.902,0.0888365]
[1771031234824,0.98379857,84.917,84.89,2.22124279]
[1771031235120,0.98379857,84.917,84.849,58.92807549]
[1771031235121,0.98379857,84.909,84.864,11.78354936]
[1771031235420,0.98379857,84.907,84.864,11.78354936]
[1771031235727,0.98379857,84.899,84.864,11.78354936]
[1771031236410,0.98379857,84.897,84.864,11.78354936]
[1771031238027,0.98379857,84.896,84.87,2.22124279]
[1771031238325,0.98379857,84.895,84.87,2.22124279]
[1771031239326,70.88,84.895,84.87,2.22124279]
[1771031239535,0.98379857,84.894,84.87,2.22124279]
[1771031240927,0.98379857,84.892,84.87,2.31237456]
[1771031243423,0.98379857,84.892,84.871,0.09184534]
[1771031262142,0.96551694,84.89,84.87,2.22124279]
[1771031263138,0.96551694,84.889,84.87,2.22124279]
[1771031263714,0.96551694,84.889,84.867,0.09601972]
[1771031264213,0.96551694,84.888,84.867,0.09601972]
[1771031264740,71.16,84.887,84.86,2.22124279]
[1771031265042,0.96551694,84.886,84.853,11.78505245]
[1771031265935,0.96551694,84.886,84.849,0.09656679]
[1771031266141,0.96551694,84.884,84.843,0.09674497]
[1771031266331,71.16,84.883,84.843,0.09674497]
[1771031266537,0.96551694,84.882,84.843,0.09674497]
[1771031267643,0.96551694,84.882,84.851,0.09709522]
[1771031268317,0.96551694,84.88,84.851,0.09709522]
[1771031269840,0.96551694,84.884,84.861,0.09743748]
[1771031270033,11.78092197,84.883,84.861,0.09743748]
[1771031270553,0.96551694,84.882,84.861,0.09743748]
[1771031271427,0.96551694,84.882,84.86,2.22319504]
[1771031272027,0.96551694,84.882,84.861,11.78397614]
[1771031272223,0.96551694,84.882,84.861,11.88174805]
[1771031272547,0.96551694,84.882,84.861,0.09777191]
[1771031274151,71.26,84.885,84.862,0.0980987]
[1771031274353,0.96551694,84.919,84.871,0.0980987]
[1771031274649,0.96551694,84.917,84.891,0.09825929]
[1771031275627,0.96551694,84.915,84.891,0.09825929]
[1771031276044,0.96551694,84.915,84.89,2.22319504]
[1771031278450,71.24,84.92,84.89,2.22319504]
[1771031278451,0.96551694,84.913,84.89,2.22319504]
[1771031280649,0.96551694,84.911,84.89,2.22319504]
[1771031281730,0.96551694,84.911,84.891,0.09947934]
[1771031282054,0.96551694,84.911,84.9,2.22319504]
[1771031283656,0.96551694,84.911,84.891,0.09947934]
[1771031284356,0.96551694,84.911,84.89,2.22319504]
[1771031284545,0.96551694,84.909,84.89,2.22319504]
[1771031290558,0.96551694,84.909,84.89,2.32391868]
[1771031291060,0.96551694,84.909,84.891,0.10072364]
[1771031291355,41.21089379,84.929,84.891,0.10072364]
[1771031291656,0.96551694,84.928,84.901,0.10085408]
[1771031291963,0.96551694,84.928,84.91,2.22319504]
[1771031292851,29.43324756,84.938,84.921,0.10098302]
[1771031292852,0.96551694,84.938,84.921,0.10098302]
[1771031293035,0.96551694,84.938,84.92,2.22319504]
[1771031293458,0.96551694,84.936,84.91,2.22319504]
[1771031294963,0.96551694,84.935,84.901,0.10123647]